[Event "*** Titled Tuesday Blitz"]
[Site "Chess.com"]
[Date "2020.11.24"]
[Round "9"]
[White "InitiatingASC"]
[Black "YIYUKI"]
[Result "0-1"]
[WhiteElo "2433"]
[BlackElo "2347"]
[TimeControl "180+1"]
[EndTime "12:02:20 PST"]
[Termination "YIYUKI won by resignation"]

1. Nf3 {[%clk 0:03:00.9]} 1... Nf6 {[%clk 0:02:59.1]} 2. g3 {[%clk 0:03:00.6]}
2... g6 {[%clk 0:02:59.1]} 3. Bg2 {[%clk 0:03:01.5]} 3... Bg7 {[%clk 0:02:59.3]}
4. O-O {[%clk 0:03:02.4]} 4... O-O {[%clk 0:02:59.5]} 5. d3 {[%clk 0:03:03]}
5... c5 {[%clk 0:02:56.9]} 6. Nbd2 {[%clk 0:03:03.1]} 6... Nc6 {[%clk
0:02:56.3]} 7. Rb1 {[%clk 0:03:03.5]} 7... d6 {[%clk 0:02:56.5]} 8. a3 {[%clk
0:03:03.1]} 8... Rb8 {[%clk 0:02:55]} 9. b4 {[%clk 0:03:03]} 9... cxb4 {[%clk
0:02:55.1]} 10. axb4 {[%clk 0:03:03.9]} 10... b5 {[%clk 0:02:53]} 11. Bb2 {[%clk
0:02:56.3]} 11... e5 {[%clk 0:02:48.8]} 12. c3 {[%clk 0:02:51.3]} 12... h6
{[%clk 0:02:44.5]} 13. Nb3 {[%clk 0:02:51.4]} 13... Be6 {[%clk 0:02:43.9]} 14.
Nfd2 {[%clk 0:02:51.1]} 14... Qd7 {[%clk 0:02:44]} 15. Ra1 {[%clk 0:02:51.1]}
15... Bh3 {[%clk 0:02:39.7]} 16. Ra6 {[%clk 0:02:44.3]} 16... Bxg2 {[%clk
0:02:39.2]} 17. Kxg2 {[%clk 0:02:43.4]} 17... Qb7 {[%clk 0:02:33.2]} 18. Rxc6
{[%clk 0:02:42.1]} 18... Qxc6+ {[%clk 0:02:32.5]} 19. e4 {[%clk 0:02:42.5]}
19... d5 {[%clk 0:02:25.9]} 20. f3 {[%clk 0:02:38.1]} 20... Rbd8 {[%clk
0:02:22.8]} 21. Qe2 {[%clk 0:02:37]} 21... a6 {[%clk 0:02:18.5]} 22. Ra1 {[%clk
0:02:33.3]} 22... Rfe8 {[%clk 0:02:16.8]} 23. Nc5 {[%clk 0:02:32.5]} 23... Ra8
{[%clk 0:02:14.8]} 24. Ndb3 {[%clk 0:02:32.5]} 24... dxe4 {[%clk 0:02:12.3]} 25.
fxe4 {[%clk 0:02:29.2]} 25... h5 {[%clk 0:02:09.8]} 26. Bc1 {[%clk 0:02:28.8]}
26... Nd7 {[%clk 0:02:02.8]} 27. Be3 {[%clk 0:02:28.3]} 27... Nxc5 {[%clk
0:02:01.9]} 28. Nxc5 {[%clk 0:02:25.5]} 28... Bf8 {[%clk 0:02:01.6]} 29. Rf1
{[%clk 0:02:14.2]} 29... a5 {[%clk 0:01:55.5]} 30. Qf2 {[%clk 0:02:09.4]} 30...
Re7 {[%clk 0:01:48.4]} 31. bxa5 {[%clk 0:02:03.6]} 31... Rxa5 {[%clk 0:01:46.6]}
32. d4 {[%clk 0:01:59.3]} 32... exd4 {[%clk 0:01:43.9]} 33. cxd4 {[%clk
0:01:48.8]} 33... Rea7 {[%clk 0:01:43.8]} 34. Kg1 {[%clk 0:01:37]} 34... Bxc5
{[%clk 0:01:41.8]} 35. dxc5 {[%clk 0:01:34.3]} 35... Qxe4 {[%clk 0:01:41.9]} 36.
c6 {[%clk 0:01:33]} 36... Ra2 {[%clk 0:01:34.8]} 37. Bxa7 {[%clk 0:01:26.8]}
37... Rxf2 {[%clk 0:01:33.1]} 38. Bxf2 {[%clk 0:01:24.2]} 38... Qxc6 {[%clk
0:01:32.6]} 39. Rd1 {[%clk 0:01:18.9]} 39... Qc2 {[%clk 0:01:30.7]} 40. Rd8+
{[%clk 0:01:17.9]} 40... Kg7 {[%clk 0:01:29.9]} 41. Bd4+ {[%clk 0:01:17.8]}
41... f6 {[%clk 0:01:29.8]} 42. Rd7+ {[%clk 0:01:17.6]} 42... Kf8 {[%clk
0:01:28.6]} 43. Bxf6 {[%clk 0:01:00.3]} 43... Qc5+ {[%clk 0:01:28.1]} 44. Bd4
{[%clk 0:00:57.3]} 44... Qc1+ {[%clk 0:01:22.8]} 45. Kf2 {[%clk 0:00:55.1]}
45... Qc2+ {[%clk 0:01:12.8]} 46. Kg1 {[%clk 0:00:50.9]} 46... Ke8 {[%clk
0:01:10.6]} 47. Rd6 {[%clk 0:00:41.5]} 47... Ke7 {[%clk 0:01:06.3]} 48. Rd5
{[%clk 0:00:29.5]} 48... Qb1+ {[%clk 0:01:02.1]} 0-1

[Event "*** Titled Tuesday Blitz"]
[Site "Chess.com"]
[Date "2020.11.24"]
[Round "9"]
[White "Margency"]
[Black "rasmussvane"]
[Result "1-0"]
[WhiteElo "2687"]
[BlackElo "2865"]
[TimeControl "180+1"]
[EndTime "12:02:23 PST"]
[Termination "Margency won by resignation"]

1. e4 {[%clk 0:03:00.9]} 1... c6 {[%clk 0:03:00]} 2. d4 {[%clk 0:03:00.8]} 2...
d5 {[%clk 0:03:00.9]} 3. exd5 {[%clk 0:03:01.5]} 3... cxd5 {[%clk 0:03:01.8]} 4.
c4 {[%clk 0:03:01.5]} 4... Nf6 {[%clk 0:03:02]} 5. Nc3 {[%clk 0:03:01.9]} 5...
Nc6 {[%clk 0:03:02.1]} 6. Bg5 {[%clk 0:03:01.7]} 6... dxc4 {[%clk 0:03:01.7]} 7.
Bxc4 {[%clk 0:03:01.3]} 7... h6 {[%clk 0:03:02.3]} 8. Be3 {[%clk 0:03:00.9]}
8... e6 {[%clk 0:03:02.1]} 9. Nf3 {[%clk 0:03:01.1]} 9... Be7 {[%clk 0:03:02.2]}
10. O-O {[%clk 0:03:01.3]} 10... O-O {[%clk 0:03:01.4]} 11. Qd2 {[%clk
0:03:01.9]} 11... Re8 {[%clk 0:02:54.6]} 12. Rad1 {[%clk 0:03:00.2]} 12... Nb4
{[%clk 0:02:48.3]} 13. Rfe1 {[%clk 0:02:40.7]} 13... Bd7 {[%clk 0:02:34.1]} 14.
Ne5 {[%clk 0:02:39.5]} 14... Rc8 {[%clk 0:02:31.8]} 15. Bb3 {[%clk 0:02:30.2]}
15... Bc6 {[%clk 0:02:28.5]} 16. Bxh6 {[%clk 0:02:06.8]} 16... gxh6 {[%clk
0:02:19.5]} 17. Re3 {[%clk 0:02:01.8]} 17... Bd6 {[%clk 0:00:59]} 18. Rg3+
{[%clk 0:01:56.4]} 18... Kf8 {[%clk 0:00:58.6]} 19. Ng6+ {[%clk 0:01:34.9]}
19... Kg7 {[%clk 0:00:46.5]} 20. Ne5+ {[%clk 0:01:07.1]} 20... Kf8 {[%clk
0:00:46.2]} 21. Qxh6+ {[%clk 0:01:06.9]} 21... Ke7 {[%clk 0:00:46.7]} 22. Nxf7
{[%clk 0:00:59.3]} 22... Bxg3 {[%clk 0:00:10.8]} 23. Nxd8 {[%clk 0:00:52.5]}
23... Bxf2+ {[%clk 0:00:11]} 24. Kf1 {[%clk 0:00:41.7]} 24... Rcxd8 {[%clk
0:00:10.2]} 25. Qg7+ {[%clk 0:00:38]} 25... Kd6 {[%clk 0:00:10.6]} 26. Qxf6
{[%clk 0:00:35.8]} 26... Rf8 {[%clk 0:00:10.3]} 27. Qe5+ {[%clk 0:00:34.4]}
27... Kd7 {[%clk 0:00:10.5]} 28. Bxe6+ {[%clk 0:00:34.4]} 28... Ke8 {[%clk
0:00:10.3]} 29. Bf5+ {[%clk 0:00:32.5]} 29... Kf7 {[%clk 0:00:10.4]} 30. Qe6+
{[%clk 0:00:31.4]} 1-0

[Event "*** Titled Tuesday Blitz"]
[Site "Chess.com"]
[Date "2020.11.24"]
[Round "9"]
[White "esapunov"]
[Black "DenisQ"]
[Result "1-0"]
[WhiteElo "2812"]
[BlackElo "2676"]
[TimeControl "180+1"]
[EndTime "12:02:29 PST"]
[Termination "esapunov won on time"]

1. c4 {[%clk 0:02:58.3]} 1... c6 {[%clk 0:01:11.3]} 2. Nf3 {[%clk 0:02:57.2]}
2... d5 {[%clk 0:01:12.2]} 3. b3 {[%clk 0:02:57.2]} 3... Nf6 {[%clk 0:01:11.4]}
4. Bb2 {[%clk 0:02:57.4]} 4... Bf5 {[%clk 0:01:09.4]} 5. g3 {[%clk 0:02:57.2]}
5... Nbd7 {[%clk 0:01:09]} 6. Bg2 {[%clk 0:02:57]} 6... e6 {[%clk 0:01:09.1]} 7.
O-O {[%clk 0:02:56.9]} 7... Bc5 {[%clk 0:01:08.2]} 8. d3 {[%clk 0:02:55.7]} 8...
h6 {[%clk 0:01:07.8]} 9. Nbd2 {[%clk 0:02:54.8]} 9... O-O {[%clk 0:01:07.7]} 10.
a3 {[%clk 0:02:52.5]} 10... a5 {[%clk 0:01:06.9]} 11. Qb1 {[%clk 0:02:52.5]}
11... Qe7 {[%clk 0:01:05.9]} 12. Qc2 {[%clk 0:02:20.9]} 12... Rfc8 {[%clk
0:01:00]} 13. Qc1 {[%clk 0:02:06.5]} 13... b5 {[%clk 0:00:54]} 14. Re1 {[%clk
0:02:00.1]} 14... Ng4 {[%clk 0:00:46.5]} 15. Nd4 {[%clk 0:01:54]} 15... Nxf2
{[%clk 0:00:31.5]} 16. Kxf2 {[%clk 0:01:49.1]} 16... e5 {[%clk 0:00:30.9]} 17.
e3 {[%clk 0:01:47.8]} 17... exd4 {[%clk 0:00:30.2]} 18. exd4 {[%clk 0:01:45.3]}
18... Qg5 {[%clk 0:00:14.4]} 19. dxc5 {[%clk 0:01:35.2]} 19... Nxc5 {[%clk
0:00:15.3]} 20. Bf1 {[%clk 0:01:30.2]} 20... Bxd3 {[%clk 0:00:13.3]} 21. Bd4
{[%clk 0:01:21]} 21... Qf5+ {[%clk 0:00:07.3]} 22. Kg1 {[%clk 0:01:19.2]} 22...
Ne6 {[%clk 0:00:06.4]} 23. Bf2 {[%clk 0:01:13.4]} 23... bxc4 {[%clk 0:00:04.4]}
24. bxc4 {[%clk 0:01:13]} 24... dxc4 {[%clk 0:00:03.8]} 25. Nxc4 {[%clk
0:01:10.8]} 25... Ng5 {[%clk 0:00:03.4]} 26. Bxd3 {[%clk 0:00:39.9]} 26... Nf3+
{[%clk 0:00:02]} 27. Kh1 {[%clk 0:00:37.8]} 27... Qxd3 {[%clk 0:00:02]} 28. Re3
{[%clk 0:00:32.1]} 1-0

[Event "*** Titled Tuesday Blitz"]
[Site "Chess.com"]
[Date "2020.11.24"]
[Round "9"]
[White "canary2016"]
[Black "Forantes"]
[Result "0-1"]
[WhiteElo "2002"]
[BlackElo "2372"]
[TimeControl "180+1"]
[EndTime "12:02:32 PST"]
[Termination "Forantes won by checkmate"]

1. d4 {[%clk 0:03:00.9]} 1... Nf6 {[%clk 0:02:59.9]} 2. c4 {[%clk 0:02:59.2]}
2... g6 {[%clk 0:03:00]} 3. Nf3 {[%clk 0:02:57.2]} 3... Bg7 {[%clk 0:02:59.5]}
4. g3 {[%clk 0:02:57.3]} 4... O-O {[%clk 0:02:59.3]} 5. Bg2 {[%clk 0:02:57.6]}
5... d5 {[%clk 0:02:54.2]} 6. cxd5 {[%clk 0:02:55.1]} 6... Nxd5 {[%clk
0:02:55.1]} 7. O-O {[%clk 0:02:54.2]} 7... Nc6 {[%clk 0:02:54.6]} 8. e3 {[%clk
0:02:50.3]} 8... Re8 {[%clk 0:02:46.5]} 9. Nc3 {[%clk 0:02:49.5]} 9... Nb6
{[%clk 0:02:46.5]} 10. Qe2 {[%clk 0:02:15.5]} 10... e5 {[%clk 0:02:46.3]} 11.
dxe5 {[%clk 0:02:07.8]} 11... Nxe5 {[%clk 0:02:47.1]} 12. Nxe5 {[%clk
0:02:07.2]} 12... Rxe5 {[%clk 0:02:29.8]} 13. Rd1 {[%clk 0:02:06.8]} 13... Qe8
{[%clk 0:02:29.2]} 14. e4 {[%clk 0:01:58.5]} 14... c6 {[%clk 0:02:24.6]} 15. Bf4
{[%clk 0:01:56.2]} 15... Ra5 {[%clk 0:01:59.5]} 16. Bc7 {[%clk 0:01:41.6]} 16...
Be6 {[%clk 0:01:55.8]} 17. Rd2 {[%clk 0:01:21.4]} 17... Rc8 {[%clk 0:01:53.6]}
18. Bd6 {[%clk 0:01:16.3]} 18... Nc4 {[%clk 0:01:53.3]} 19. Rdd1 {[%clk
0:01:10.2]} 19... Nxd6 {[%clk 0:01:41.4]} 20. Rxd6 {[%clk 0:01:08.6]} 20... Qe7
{[%clk 0:01:28.5]} 21. Rad1 {[%clk 0:00:48.3]} 21... Bxc3 {[%clk 0:01:27]} 22.
bxc3 {[%clk 0:00:45.7]} 22... Rxa2 {[%clk 0:01:26.9]} 23. Qd3 {[%clk 0:00:40.7]}
23... a5 {[%clk 0:01:24.1]} 24. c4 {[%clk 0:00:30.7]} 24... Qf6 {[%clk
0:01:17.1]} 25. f4 {[%clk 0:00:21.2]} 25... Qb2 {[%clk 0:01:16.8]} 26. Rd8+
{[%clk 0:00:05.7]} 26... Rxd8 {[%clk 0:01:06.9]} 27. Qxd8+ {[%clk 0:00:05.3]}
27... Kg7 {[%clk 0:01:06.8]} 28. Qd4+ {[%clk 0:00:05.2]} 28... Qxd4+ {[%clk
0:01:06.8]} 29. Rxd4 {[%clk 0:00:04.9]} 29... a4 {[%clk 0:01:07.1]} 30. Bf1
{[%clk 0:00:04.8]} 30... a3 {[%clk 0:01:06.9]} 31. Rd1 {[%clk 0:00:04.7]} 31...
Rb2 {[%clk 0:01:05.8]} 32. Ra1 {[%clk 0:00:04.3]} 32... a2 {[%clk 0:01:06.2]}
33. Bd3 {[%clk 0:00:03]} 33... b5 {[%clk 0:01:05.6]} 34. cxb5 {[%clk 0:00:02.5]}
34... cxb5 {[%clk 0:01:06.5]} 35. h3 {[%clk 0:00:01.6]} 35... b4 {[%clk
0:01:06.7]} 36. g4 {[%clk 0:00:01.8]} 36... b3 {[%clk 0:01:06.4]} 37. h4 {[%clk
0:00:01.7]} 37... Rd2 {[%clk 0:01:05.1]} 38. g5 {[%clk 0:00:02.6]} 38... Rxd3
{[%clk 0:01:03.8]} 39. Rc1 {[%clk 0:00:02.4]} 39... b2 {[%clk 0:01:03.6]} 40.
Re1 {[%clk 0:00:02]} 40... a1=Q {[%clk 0:01:03.4]} 41. Rxa1 {[%clk 0:00:02.1]}
41... bxa1=Q+ {[%clk 0:01:04.3]} 42. Kg2 {[%clk 0:00:02.7]} 42... Qb2+ {[%clk
0:01:04.7]} 43. Kg1 {[%clk 0:00:02.8]} 43... Rd1# {[%clk 0:01:05.6]} 0-1

[Event "*** Titled Tuesday Blitz"]
[Site "Chess.com"]
[Date "2020.11.24"]
[Round "9"]
[White "davidkalashian"]
[Black "freshfoodcompany"]
[Result "1-0"]
[WhiteElo "2534"]
[BlackElo "2361"]
[TimeControl "180+1"]
[EndTime "12:02:33 PST"]
[Termination "davidkalashian won by resignation"]

1. d4 {[%clk 0:03:00.9]} 1... d5 {[%clk 0:02:59.5]} 2. Nf3 {[%clk 0:02:59.7]}
2... Nf6 {[%clk 0:02:58.5]} 3. c4 {[%clk 0:02:59.6]} 3... c6 {[%clk 0:02:58.4]}
4. Qc2 {[%clk 0:02:58.8]} 4... g6 {[%clk 0:02:54.7]} 5. g3 {[%clk 0:02:57.6]}
5... Bg7 {[%clk 0:02:53.5]} 6. Bg2 {[%clk 0:02:55.6]} 6... O-O {[%clk
0:02:53.1]} 7. O-O {[%clk 0:02:54.2]} 7... Bf5 {[%clk 0:02:52]} 8. Qb3 {[%clk
0:02:49.7]} 8... Qb6 {[%clk 0:02:48]} 9. Nc3 {[%clk 0:02:48.6]} 9... dxc4 {[%clk
0:02:47.2]} 10. Qxc4 {[%clk 0:02:48.2]} 10... Nbd7 {[%clk 0:02:46.7]} 11. Re1
{[%clk 0:02:42.5]} 11... Ne4 {[%clk 0:02:39.3]} 12. Nh4 {[%clk 0:02:32.1]} 12...
Nxc3 {[%clk 0:02:26.8]} 13. Nxf5 {[%clk 0:02:13]} 13... gxf5 {[%clk 0:01:59.6]}
14. bxc3 {[%clk 0:02:11.4]} 14... e6 {[%clk 0:01:57.3]} 15. a4 {[%clk
0:02:08.3]} 15... a5 {[%clk 0:01:55.7]} 16. Bf4 {[%clk 0:02:01.9]} 16... Rfd8
{[%clk 0:01:54]} 17. Rab1 {[%clk 0:01:59.5]} 17... Qa7 {[%clk 0:01:49.4]} 18.
Qb3 {[%clk 0:01:55.6]} 18... e5 {[%clk 0:01:32.8]} 19. dxe5 {[%clk 0:01:47.9]}
19... Nc5 {[%clk 0:01:32.9]} 20. Qc2 {[%clk 0:01:47.5]} 20... b5 {[%clk
0:01:11.2]} 21. axb5 {[%clk 0:01:39.4]} 21... a4 {[%clk 0:01:05.8]} 22. bxc6
{[%clk 0:01:34.2]} 22... Rac8 {[%clk 0:01:00.1]} 23. Qxf5 {[%clk 0:01:30.9]}
23... a3 {[%clk 0:00:57.7]} 24. Be3 {[%clk 0:01:30.9]} 24... Qa5 {[%clk
0:00:51.7]} 25. e6 {[%clk 0:01:26.3]} 25... a2 {[%clk 0:00:26.2]} 26. exf7+
{[%clk 0:01:20.5]} 26... Kh8 {[%clk 0:00:24.7]} 27. Ra1 {[%clk 0:01:10.9]} 27...
Qxc3 {[%clk 0:00:22.6]} 28. Qxc5 {[%clk 0:01:04.9]} 28... Qxc5 {[%clk
0:00:14.6]} 29. Bxc5 {[%clk 0:01:03.9]} 29... Bxa1 {[%clk 0:00:14]} 30. Rxa1
{[%clk 0:01:04.8]} 30... Kg7 {[%clk 0:00:13.6]} 31. Rxa2 {[%clk 0:01:03.2]}
31... Rd1+ {[%clk 0:00:12.4]} 32. Bf1 {[%clk 0:01:02.8]} 32... Rc1 {[%clk
0:00:11.7]} 33. f8=Q+ {[%clk 0:01:01.4]} 33... Rxf8 {[%clk 0:00:10.9]} 34. Bxf8+
{[%clk 0:01:01.3]} 34... Kxf8 {[%clk 0:00:11]} 35. Ra8+ {[%clk 0:00:59.9]} 35...
Ke7 {[%clk 0:00:10.9]} 36. Ra7+ {[%clk 0:01:00.8]} 36... Kd6 {[%clk 0:00:11.1]}
37. c7 {[%clk 0:01:01.7]} 37... Kd7 {[%clk 0:00:11]} 38. Kg2 {[%clk 0:01:00.8]}
38... Rc2 {[%clk 0:00:10.6]} 39. f3 {[%clk 0:01:00]} 39... Rc1 {[%clk 0:00:10]}
40. Kf2 {[%clk 0:01:00]} 40... Rc3 {[%clk 0:00:09.6]} 41. Bh3+ {[%clk
0:00:59.4]} 41... Kd6 {[%clk 0:00:07.7]} 42. c8=Q {[%clk 0:00:58.4]} 42... Rxc8
{[%clk 0:00:07.3]} 43. Bxc8 {[%clk 0:00:59]} 1-0

[Event "*** Titled Tuesday Blitz"]
[Site "Chess.com"]
[Date "2020.11.24"]
[Round "9"]
[White "Quiet_Desperation"]
[Black "Dinamo3"]
[Result "0-1"]
[WhiteElo "1714"]
[BlackElo "2424"]
[TimeControl "180+1"]
[EndTime "12:02:35 PST"]
[Termination "Dinamo3 won by resignation"]

1. e4 {[%clk 0:02:52.4]} 1... c6 {[%clk 0:02:59.4]} 2. d4 {[%clk 0:02:52.1]}
2... d5 {[%clk 0:02:59.5]} 3. exd5 {[%clk 0:02:52.3]} 3... cxd5 {[%clk
0:02:59.9]} 4. c4 {[%clk 0:02:52.7]} 4... Nf6 {[%clk 0:03:00.1]} 5. Nf3 {[%clk
0:02:52.8]} 5... Nc6 {[%clk 0:03:00.3]} 6. Nc3 {[%clk 0:02:53]} 6... Bg4 {[%clk
0:03:00.7]} 7. cxd5 {[%clk 0:02:44.4]} 7... Nxd5 {[%clk 0:02:58.2]} 8. Bc4
{[%clk 0:02:40.2]} 8... e6 {[%clk 0:02:45.8]} 9. h3 {[%clk 0:02:34.5]} 9... Bxf3
{[%clk 0:02:37.6]} 10. Qxf3 {[%clk 0:02:27.3]} 10... Nxd4 {[%clk 0:02:32.5]} 11.
Qd1 {[%clk 0:02:14.1]} 11... Nb6 {[%clk 0:02:19.4]} 12. Bd3 {[%clk 0:01:57.2]}
12... Be7 {[%clk 0:02:10.2]} 13. O-O {[%clk 0:01:50.6]} 13... O-O {[%clk
0:02:03.5]} 14. Be3 {[%clk 0:01:18.4]} 14... e5 {[%clk 0:02:03.1]} 15. Re1
{[%clk 0:01:10.8]} 15... Kh8 {[%clk 0:01:59.3]} 16. Qh5 {[%clk 0:01:01.6]} 16...
f5 {[%clk 0:01:44.4]} 17. Bxd4 {[%clk 0:01:00.9]} 17... exd4 {[%clk 0:01:42]}
18. Bxf5 {[%clk 0:00:50.2]} 18... Rxf5 {[%clk 0:01:42]} 19. Qxf5 {[%clk
0:00:50.3]} 19... dxc3 {[%clk 0:01:42.5]} 20. Rad1 {[%clk 0:00:50.4]} 20... Qc7
{[%clk 0:01:23.5]} 21. bxc3 {[%clk 0:00:45.5]} 21... Bf6 {[%clk 0:01:22.8]} 22.
Qe6 {[%clk 0:00:36.9]} 22... h6 {[%clk 0:01:17.9]} 23. c4 {[%clk 0:00:36.7]}
23... Qxc4 {[%clk 0:01:01.8]} 24. Qf5 {[%clk 0:00:30.6]} 24... Qc8 {[%clk
0:00:52.8]} 25. Qg6 {[%clk 0:00:28.9]} 25... Qc7 {[%clk 0:00:37.9]} 26. Re8+
{[%clk 0:00:19.2]} 26... Rxe8 {[%clk 0:00:35]} 27. Qxe8+ {[%clk 0:00:20.1]}
27... Kh7 {[%clk 0:00:35.5]} 28. Qe4+ {[%clk 0:00:19.6]} 28... Kg8 {[%clk
0:00:33.3]} 29. Re1 {[%clk 0:00:19.9]} 29... Qf7 {[%clk 0:00:31.6]} 30. a4
{[%clk 0:00:13.6]} 30... Nd5 {[%clk 0:00:25.7]} 31. Rd1 {[%clk 0:00:11.6]} 31...
Nc3 {[%clk 0:00:22.9]} 0-1

[Event "*** Titled Tuesday Blitz"]
[Site "Chess.com"]
[Date "2020.11.24"]
[Round "9"]
[White "Agoking701"]
[Black "Michaelson_11"]
[Result "1-0"]
[WhiteElo "2348"]
[BlackElo "2143"]
[TimeControl "180+1"]
[EndTime "12:02:36 PST"]
[Termination "Agoking701 won on time"]

1. e4 {[%clk 0:03:00.9]} 1... e6 {[%clk 0:02:57.6]} 2. d4 {[%clk 0:03:00.2]}
2... d5 {[%clk 0:02:57.6]} 3. Nc3 {[%clk 0:02:59.7]} 3... Bb4 {[%clk 0:02:56.4]}
4. e5 {[%clk 0:02:58.9]} 4... c5 {[%clk 0:02:55.6]} 5. a3 {[%clk 0:02:59.2]}
5... Ba5 {[%clk 0:02:55.2]} 6. b4 {[%clk 0:02:51.5]} 6... cxd4 {[%clk 0:02:55]}
7. Qxd4 {[%clk 0:02:46.3]} 7... Nc6 {[%clk 0:02:48.3]} 8. Qg4 {[%clk 0:02:44.8]}
8... Bc7 {[%clk 0:02:47.7]} 9. f4 {[%clk 0:02:41.6]} 9... Nge7 {[%clk
0:02:38.6]} 10. Qxg7 {[%clk 0:02:33]} 10... Ng6 {[%clk 0:02:29]} 11. Qh6 {[%clk
0:02:26.9]} 11... Qe7 {[%clk 0:02:00.9]} 12. Nf3 {[%clk 0:02:20.5]} 12... Bb6
{[%clk 0:01:36.4]} 13. Nb5 {[%clk 0:02:14.5]} 13... a6 {[%clk 0:01:24.8]} 14.
Nd6+ {[%clk 0:02:14.6]} 14... Kd7 {[%clk 0:01:23.8]} 15. Bd3 {[%clk 0:02:02.7]}
15... Nd4 {[%clk 0:01:15.9]} 16. Bb2 {[%clk 0:01:47.7]} 16... Nxf3+ {[%clk
0:01:09.6]} 17. gxf3 {[%clk 0:01:48.6]} 17... Be3 {[%clk 0:01:05.6]} 18. Bxg6
{[%clk 0:01:25.2]} 18... fxg6 {[%clk 0:01:06.5]} 19. Ke2 {[%clk 0:01:18]} 19...
Bb6 {[%clk 0:00:58.2]} 20. c4 {[%clk 0:01:13]} 20... Bc7 {[%clk 0:00:28.4]} 21.
Rad1 {[%clk 0:00:50.3]} 21... b5 {[%clk 0:00:22.6]} 22. cxd5 {[%clk 0:00:49.6]}
22... exd5 {[%clk 0:00:22.4]} 23. Rxd5 {[%clk 0:00:47.3]} 23... Ke6 {[%clk
0:00:18.5]} 24. Rhd1 {[%clk 0:00:39.1]} 24... Bxd6 {[%clk 0:00:09.9]} 25. exd6
{[%clk 0:00:30.2]} 25... Qd7 {[%clk 0:00:04.9]} 26. Bxh8 {[%clk 0:00:25]} 26...
Bb7 {[%clk 0:00:05]} 27. Qh3+ {[%clk 0:00:23.8]} 1-0

[Event "*** Titled Tuesday Blitz"]
[Site "Chess.com"]
[Date "2020.11.24"]
[Round "9"]
[White "DonPreuss"]
[Black "ChessWarrior3"]
[Result "0-1"]
[WhiteElo "2227"]
[BlackElo "2110"]
[TimeControl "180+1"]
[EndTime "12:02:38 PST"]
[Termination "ChessWarrior3 won on time"]

1. d4 {[%clk 0:03:00.9]} 1... Nf6 {[%clk 0:02:50.8]} 2. Nc3 {[%clk 0:03:00.4]}
2... d5 {[%clk 0:02:49.1]} 3. e4 {[%clk 0:03:00.9]} 3... Nxe4 {[%clk 0:02:45]}
4. Nxe4 {[%clk 0:03:00.2]} 4... dxe4 {[%clk 0:02:45.2]} 5. Bc4 {[%clk
0:03:00.7]} 5... Nc6 {[%clk 0:02:41.9]} 6. c3 {[%clk 0:03:00.1]} 6... e5 {[%clk
0:02:39.9]} 7. d5 {[%clk 0:02:53.9]} 7... Ne7 {[%clk 0:02:37.9]} 8. f3 {[%clk
0:02:48.8]} 8... exf3 {[%clk 0:02:35.9]} 9. Nxf3 {[%clk 0:02:48.9]} 9... f6
{[%clk 0:02:25.8]} 10. O-O {[%clk 0:02:47.3]} 10... Nf5 {[%clk 0:02:22.7]} 11.
Qb3 {[%clk 0:02:29.8]} 11... Bc5+ {[%clk 0:02:19.3]} 12. Kh1 {[%clk 0:02:29.2]}
12... Qd6 {[%clk 0:02:13.6]} 13. Nd2 {[%clk 0:02:17.7]} 13... O-O {[%clk
0:02:00.4]} 14. Ne4 {[%clk 0:02:16.4]} 14... Qb6 {[%clk 0:01:58.5]} 15. Qc2
{[%clk 0:01:45.9]} 15... Ne3 {[%clk 0:01:49.3]} 16. Bxe3 {[%clk 0:01:45.8]}
16... Bxe3 {[%clk 0:01:50.2]} 17. Rf3 {[%clk 0:01:43.9]} 17... Bg4 {[%clk
0:01:46.2]} 18. Rg3 {[%clk 0:01:42.4]} 18... Bf5 {[%clk 0:01:43.4]} 19. Re1
{[%clk 0:01:09.6]} 19... Bf4 {[%clk 0:01:38.4]} 20. Rf3 {[%clk 0:00:59.2]} 20...
Bg4 {[%clk 0:01:31.9]} 21. Rd3 {[%clk 0:00:51.3]} 21... Bf5 {[%clk 0:01:23.9]}
22. Rf3 {[%clk 0:00:50.7]} 22... Bg6 {[%clk 0:01:23.2]} 23. Qe2 {[%clk
0:00:33.8]} 23... Bxe4 {[%clk 0:01:20.3]} 24. Qxe4 {[%clk 0:00:33.2]} 24... Qxb2
{[%clk 0:01:19.4]} 25. d6+ {[%clk 0:00:30.3]} 25... Kh8 {[%clk 0:01:18.3]} 26.
Rh3 {[%clk 0:00:27.5]} 26... f5 {[%clk 0:01:17.4]} 27. Qf3 {[%clk 0:00:25.7]}
27... cxd6 {[%clk 0:01:04.6]} 28. g3 {[%clk 0:00:16.4]} 28... Bh6 {[%clk
0:00:58.7]} 29. Qd5 {[%clk 0:00:13.6]} 29... Qf2 {[%clk 0:00:56.4]} 30. Rf1
{[%clk 0:00:12.3]} 30... Qd2 {[%clk 0:00:55.8]} 31. Qe6 {[%clk 0:00:11.4]} 31...
Qe3 {[%clk 0:00:49.8]} 32. Kg2 {[%clk 0:00:04.8]} 32... Qe4+ {[%clk 0:00:49.5]}
33. Kg1 {[%clk 0:00:04.6]} 33... Be3+ {[%clk 0:00:48.3]} 34. Rf2 {[%clk
0:00:04.2]} 34... Bxf2+ {[%clk 0:00:44.4]} 35. Kxf2 {[%clk 0:00:04.4]} 35... f4
{[%clk 0:00:44.7]} 36. g4 {[%clk 0:00:03.2]} 36... f3 {[%clk 0:00:43.1]} 0-1

[Event "*** Titled Tuesday Blitz"]
[Site "Chess.com"]
[Date "2020.11.24"]
[Round "9"]
[White "JoliyRoger"]
[Black "Brave_spirit12"]
[Result "1-0"]
[WhiteElo "2376"]
[BlackElo "2487"]
[TimeControl "180+1"]
[EndTime "12:02:41 PST"]
[Termination "JoliyRoger won by resignation"]

1. Nf3 {[%clk 0:02:59.3]} 1... f6 {[%clk 0:02:59.9]} 2. d4 {[%clk 0:02:58.3]}
2... d5 {[%clk 0:02:57.7]} 3. c4 {[%clk 0:02:58.5]} 3... c5 {[%clk 0:02:57.6]}
4. cxd5 {[%clk 0:02:56.8]} 4... Qxd5 {[%clk 0:02:56.4]} 5. Nc3 {[%clk
0:02:56.2]} 5... Qd8 {[%clk 0:02:56.2]} 6. d5 {[%clk 0:02:53.5]} 6... Bg4 {[%clk
0:02:55.6]} 7. e4 {[%clk 0:02:53.3]} 7... Nd7 {[%clk 0:02:55]} 8. Be2 {[%clk
0:02:51.6]} 8... Bxf3 {[%clk 0:02:53.2]} 9. gxf3 {[%clk 0:02:41.1]} 9... g6
{[%clk 0:02:47.3]} 10. f4 {[%clk 0:02:30.1]} 10... Bg7 {[%clk 0:02:46.2]} 11.
Bg4 {[%clk 0:02:23.8]} 11... Nh6 {[%clk 0:02:44.3]} 12. Be6 {[%clk 0:02:24.2]}
12... a6 {[%clk 0:02:26]} 13. Be3 {[%clk 0:02:14.2]} 13... Rc8 {[%clk
0:02:16.4]} 14. a4 {[%clk 0:02:13.8]} 14... Qb6 {[%clk 0:02:09]} 15. Qc2 {[%clk
0:02:04]} 15... f5 {[%clk 0:01:54.1]} 16. a5 {[%clk 0:01:47.6]} 16... Qb4 {[%clk
0:01:49.1]} 17. e5 {[%clk 0:01:23.3]} 17... b5 {[%clk 0:01:20.4]} 18. axb6
{[%clk 0:01:14.3]} 18... Qxb6 {[%clk 0:01:19.2]} 19. h3 {[%clk 0:01:03.7]} 19...
Rb8 {[%clk 0:01:12.9]} 20. O-O {[%clk 0:00:48.2]} 20... Nf8 {[%clk 0:00:45.5]}
21. Qa4+ {[%clk 0:00:38.1]} 21... Kd8 {[%clk 0:00:45.5]} 22. Qxa6 {[%clk
0:00:31.1]} 22... Nxe6 {[%clk 0:00:44.6]} 23. dxe6 {[%clk 0:00:25.4]} 23... Qxa6
{[%clk 0:00:10.7]} 24. Rxa6 {[%clk 0:00:25.6]} 24... Kc7 {[%clk 0:00:11]} 25.
Nd5+ {[%clk 0:00:24.4]} 25... Kd8 {[%clk 0:00:11]} 26. Bxc5 {[%clk 0:00:23.6]}
26... Rb5 {[%clk 0:00:10]} 27. b4 {[%clk 0:00:22.2]} 27... Rg8 {[%clk
0:00:04.2]} 28. Ra8+ {[%clk 0:00:21.2]} 1-0